[Event "Titled Tuesday Blitz June 28 Early 2022"]
[White "Sahil, Tickoo"]
[Black "Mangialardo, Tiago Carvalho"]
[WhiteFideId "5019710"]
[BlackFideId "2130718"]
[WhiteElo "2047"]
[BlackElo "2063"]
[Result "1-0"]
[Round "05"]
[TimeControl "180+1"]
[Date "2022.06.28"]
[WhiteClock "0:01:43"]
[BlackClock "0:00:01"]

1. d4 {[%clk 0:03:00]}  d5 {[%clk 0:02:59]} 2. Bf4 {[%clk 0:03:00]}  Bf5 {[%clk 0:02:58]} 3. e3 {[%clk 0:02:59]}  Nf6 {[%clk 0:02:59]} 4. c4 {[%clk 0:02:58]}  e6 {[%clk 0:02:59]} 5. Nc3 {[%clk 0:02:58]}  Bd6 {[%clk 0:02:59]} 6. Bg3 {[%clk 0:02:57]}  Bxg3 {[%clk 0:02:58]} 7. hxg3 {[%clk 0:02:56]}  Bg6 {[%clk 0:02:54]} 8. Qb3 {[%clk 0:02:55]}  Nbd7 {[%clk 0:02:21]} 9. Nf3 {[%clk 0:02:54]}  Nb6 {[%clk 0:01:39]} 10. cxd5 {[%clk 0:02:43]}  Nfxd5 {[%clk 0:01:23]} 11. Rc1 {[%clk 0:02:39]}  c6 {[%clk 0:01:13]} 12. Nh4 {[%clk 0:02:36]}  Qg5 {[%clk 0:01:00]} 13. Nxg6 {[%clk 0:02:31]}  Qxg6 {[%clk 0:01:00]} 14. Qc2 {[%clk 0:02:30]}  Qxc2 {[%clk 0:00:59]} 15. Rxc2 {[%clk 0:02:31]}  Ke7 {[%clk 0:00:58]} 16. a3 {[%clk 0:02:29]}  h5 {[%clk 0:00:53]} 17. Be2 {[%clk 0:02:28]}  g6 {[%clk 0:00:51]} 18. Bf3 {[%clk 0:02:26]}  f5 {[%clk 0:00:46]} 19. Ke2 {[%clk 0:02:14]}  Nc4 {[%clk 0:00:44]} 20. Na4 {[%clk 0:02:04]}  Nd6 {[%clk 0:00:30]} 21. Nc5 {[%clk 0:02:03]}  Rac8 {[%clk 0:00:23]} 22. Nd3 {[%clk 0:02:00]}  Nf7 {[%clk 0:00:17]} 23. Rhc1 {[%clk 0:01:57]}  Rc7 {[%clk 0:00:16]} 24. Bxd5 {[%clk 0:01:55]}  exd5 {[%clk 0:00:16]} 25. b4 {[%clk 0:01:54]}  a6 {[%clk 0:00:15]} 26. Nf4 {[%clk 0:01:54]}  Kf6 {[%clk 0:00:13]} 27. Nxd5+ {[%clk 0:01:53]}  cxd5 {[%clk 0:00:11]} 28. Rxc7 {[%clk 0:01:54]}  Nd6 {[%clk 0:00:11]} 29. f3 {[%clk 0:01:50]}  g5 {[%clk 0:00:09]} 30. Kf2 {[%clk 0:01:50]}  g4 {[%clk 0:00:05]} 31. Rd7 {[%clk 0:01:49]}  Ke6 {[%clk 0:00:04]} 32. Rcc7 {[%clk 0:01:48]}  h4 {[%clk 0:00:04]} 33. gxh4 {[%clk 0:01:45]}  Rxh4 {[%clk 0:00:04]} 34. Re7+ {[%clk 0:01:45]}  Kf6 {[%clk 0:00:04]} 35. Rcd7 {[%clk 0:01:44]}  Nb5 {[%clk 0:00:01]} 36. Kg3 {[%clk 0:01:43]}  Rh5 {[%clk 0:00:01]} 37. Kf4 {[%clk 0:01:43]} 1-0


[Site "https://www.chess.com"]

[Event "Titled Tuesday Blitz June 28 Early 2022"]
[White "Sanchez, Robert"]
[Black "Rustemov, Alexander"]
[WhiteFideId "2034360"]
[BlackFideId "4119002"]
[WhiteElo "2062"]
[BlackElo "2743"]
[Result "1/2-1/2"]
[Round "05"]
[TimeControl "180+1"]
[Date "2022.06.28"]
[WhiteClock "0:00:35"]
[BlackClock "0:00:40"]

1. e4 {[%clk 0:03:00]}  e6 {[%clk 0:02:59]} 2. d4 {[%clk 0:03:01]}  d5 {[%clk 0:03:00]} 3. Nc3 {[%clk 0:03:01]}  Bb4 {[%clk 0:02:59]} 4. e5 {[%clk 0:03:01]}  c5 {[%clk 0:02:59]} 5. Bd2 {[%clk 0:03:02]}  Ne7 {[%clk 0:02:50]} 6. Nf3 {[%clk 0:02:58]}  Bxc3 {[%clk 0:02:33]} 7. Bxc3 {[%clk 0:02:52]}  b6 {[%clk 0:02:34]} 8. Qd2 {[%clk 0:02:45]}  Ba6 {[%clk 0:02:32]} 9. O-O-O {[%clk 0:02:44]}  Bxf1 {[%clk 0:02:30]} 10. Rdxf1 {[%clk 0:02:41]}  O-O {[%clk 0:02:28]} 11. Kb1 {[%clk 0:02:41]}  Nbc6 {[%clk 0:02:27]} 12. h4 {[%clk 0:02:39]}  Rc8 {[%clk 0:02:22]} 13. h5 {[%clk 0:02:39]}  h6 {[%clk 0:02:17]} 14. g4 {[%clk 0:02:37]}  f6 {[%clk 0:01:56]} 15. dxc5 {[%clk 0:02:20]}  fxe5 {[%clk 0:01:39]} 16. Nxe5 {[%clk 0:02:13]}  bxc5 {[%clk 0:01:32]} 17. g5 {[%clk 0:01:53]}  d4 {[%clk 0:01:28]} 18. Nxc6 {[%clk 0:01:53]}  Rxc6 {[%clk 0:01:20]} 19. Ba5 {[%clk 0:01:49]}  Qd5 {[%clk 0:00:58]} 20. gxh6 {[%clk 0:01:45]}  gxh6 {[%clk 0:00:59]} 21. Qxh6 {[%clk 0:01:38]}  Kf7 {[%clk 0:00:59]} 22. Rhg1 {[%clk 0:01:12]}  Ke8 {[%clk 0:00:59]} 23. Rg7 {[%clk 0:01:00]}  Qf5 {[%clk 0:00:52]} 24. Bd2 {[%clk 0:00:40]}  Rf6 {[%clk 0:00:46]} 25. Qh8+ {[%clk 0:00:35]}  Rf8 {[%clk 0:00:45]} 26. Qh6 {[%clk 0:00:35]}  Rf6 {[%clk 0:00:40]} 27. Qh8+ {[%clk 0:00:35]}  Rf8 {[%clk 0:00:40]} 28. Qh6 {[%clk 0:00:35]} 1/2-1/2


[Site "https://www.chess.com"]

[Event "Titled Tuesday Blitz June 28 Early 2022"]
[White "Sevian, Samuel"]
[Black "Rychagov, Andrey"]
[WhiteFideId "2040506"]
[BlackFideId "4119932"]
[WhiteElo "2692"]
[BlackElo "2460"]
[Result "0-1"]
[Round "05"]
[TimeControl "180+1"]
[Date "2022.06.28"]
[WhiteClock "0:00:15"]
[BlackClock "0:00:32"]

1. d4 {[%clk 0:02:55]}  d5 {[%clk 0:02:59]} 2. c4 {[%clk 0:02:54]}  e6 {[%clk 0:02:59]} 3. Nc3 {[%clk 0:02:55]}  Be7 {[%clk 0:03:00]} 4. e3 {[%clk 0:02:53]}  Nf6 {[%clk 0:02:59]} 5. f4 {[%clk 0:02:53]}  O-O {[%clk 0:02:56]} 6. Nf3 {[%clk 0:02:54]}  b6 {[%clk 0:02:53]} 7. Qc2 {[%clk 0:02:53]}  Bb7 {[%clk 0:02:52]} 8. cxd5 {[%clk 0:02:52]}  exd5 {[%clk 0:02:52]} 9. Bd3 {[%clk 0:02:52]}  c5 {[%clk 0:02:52]} 10. O-O {[%clk 0:02:52]}  Nc6 {[%clk 0:02:52]} 11. Ne5 {[%clk 0:02:51]}  Nb4 {[%clk 0:02:50]} 12. Qd1 {[%clk 0:02:49]}  cxd4 {[%clk 0:02:42]} 13. exd4 {[%clk 0:02:49]}  Nxd3 {[%clk 0:02:42]} 14. Qxd3 {[%clk 0:02:49]}  Ne4 {[%clk 0:02:42]} 15. Bd2 {[%clk 0:02:48]}  f6 {[%clk 0:02:37]} 16. Ng4 {[%clk 0:02:48]}  Qd7 {[%clk 0:02:22]} 17. Ne3 {[%clk 0:02:44]}  f5 {[%clk 0:02:22]} 18. Rae1 {[%clk 0:02:42]}  Bf6 {[%clk 0:02:21]} 19. Rf3 {[%clk 0:02:42]}  Rfe8 {[%clk 0:02:18]} 20. Rd1 {[%clk 0:02:39]}  Rac8 {[%clk 0:02:17]} 21. Be1 {[%clk 0:02:39]}  Nxc3 {[%clk 0:02:05]} 22. Bxc3 {[%clk 0:02:36]}  Re4 {[%clk 0:02:05]} 23. Nf1 {[%clk 0:02:36]}  Qa4 {[%clk 0:02:03]} 24. Ng3 {[%clk 0:02:31]}  g6 {[%clk 0:01:47]} 25. Qd2 {[%clk 0:02:24]}  Qxa2 {[%clk 0:01:39]} 26. Nxe4 {[%clk 0:02:23]}  dxe4 {[%clk 0:01:39]} 27. Re3 {[%clk 0:02:23]}  Bd5 {[%clk 0:01:39]} 28. Kh1 {[%clk 0:02:21]}  a5 {[%clk 0:01:38]} 29. g4 {[%clk 0:02:20]}  fxg4 {[%clk 0:01:37]} 30. Rg1 {[%clk 0:02:19]}  Be6 {[%clk 0:01:30]} 31. h3 {[%clk 0:02:01]}  gxh3 {[%clk 0:01:27]} 32. Qe2 {[%clk 0:00:59]}  Qd5 {[%clk 0:01:24]} 33. Qa6 {[%clk 0:00:59]}  Rc6 {[%clk 0:01:14]} 34. Qa8+ {[%clk 0:00:57]}  Kg7 {[%clk 0:01:14]} 35. Qb7+ {[%clk 0:00:55]}  Kh6 {[%clk 0:01:09]} 36. Rgg3 {[%clk 0:00:53]}  Rxc3 {[%clk 0:00:43]} 37. Rxh3+ {[%clk 0:00:53]}  Bxh3 {[%clk 0:00:43]} 38. Qxd5 {[%clk 0:00:53]}  Rxe3 {[%clk 0:00:42]} 39. Qf7 {[%clk 0:00:54]}  Bh4 {[%clk 0:00:36]} 40. Kh2 {[%clk 0:00:33]}  Bg4 {[%clk 0:00:36]} 41. Qf8+ {[%clk 0:00:14]}  Kh5 {[%clk 0:00:36]} 42. Qf7 {[%clk 0:00:14]}  h6 {[%clk 0:00:34]} 43. d5 {[%clk 0:00:14]}  Re2+ {[%clk 0:00:34]} 44. Kh1 {[%clk 0:00:14]}  Bf3+ {[%clk 0:00:32]} 45. Kg1 {[%clk 0:00:15]}  Bg3 {[%clk 0:00:32]} 0-1


[Site "https://www.chess.com"]

[Event "Titled Tuesday Blitz June 28 Early 2022"]
[White "Sirosh, Ilja"]
[Black "Ocelak, Jakub"]
[WhiteFideId "4500458"]
[BlackFideId "23707933"]
[WhiteElo "2241"]
[BlackElo "2048"]
[Result "1/2-1/2"]
[Round "05"]
[TimeControl "180+1"]
[Date "2022.06.28"]
[WhiteClock "0:00:06"]
[BlackClock "0:00:05"]

1. e4 {[%clk 0:03:00]}  c5 {[%clk 0:02:55]} 2. Nf3 {[%clk 0:03:00]}  e6 {[%clk 0:02:53]} 3. d4 {[%clk 0:02:55]}  cxd4 {[%clk 0:02:54]} 4. Nxd4 {[%clk 0:02:51]}  Nf6 {[%clk 0:02:54]} 5. Nc3 {[%clk 0:02:49]}  Nc6 {[%clk 0:02:54]} 6. Nxc6 {[%clk 0:02:43]}  bxc6 {[%clk 0:02:54]} 7. e5 {[%clk 0:02:44]}  Nd5 {[%clk 0:02:54]} 8. Ne4 {[%clk 0:02:44]}  Qc7 {[%clk 0:02:54]} 9. f4 {[%clk 0:02:43]}  Qb6 {[%clk 0:02:55]} 10. c4 {[%clk 0:02:43]}  Bb4+ {[%clk 0:02:55]} 11. Ke2 {[%clk 0:02:43]}  f5 {[%clk 0:02:56]} 12. exf6 {[%clk 0:02:43]}  Nxf6 {[%clk 0:02:56]} 13. Nd6+ {[%clk 0:02:42]}  Bxd6 {[%clk 0:02:28]} 14. Qxd6 {[%clk 0:02:43]}  Bb7 {[%clk 0:02:28]} 15. c5 {[%clk 0:02:37]}  Qb4 {[%clk 0:02:18]} 16. a3 {[%clk 0:01:35]}  Ba6+ {[%clk 0:02:12]} 17. Kd1 {[%clk 0:01:35]}  Qb3+ {[%clk 0:01:54]} 18. Ke1 {[%clk 0:01:35]}  Bxf1 {[%clk 0:01:46]} 19. Rxf1 {[%clk 0:01:31]}  Qd5 {[%clk 0:01:28]} 20. Qxd5 {[%clk 0:01:30]}  cxd5 {[%clk 0:01:16]} 21. Be3 {[%clk 0:01:28]}  a5 {[%clk 0:01:12]} 22. Bd4 {[%clk 0:01:28]}  Kf7 {[%clk 0:01:07]} 23. Rf3 {[%clk 0:01:24]}  Rhb8 {[%clk 0:01:04]} 24. b3 {[%clk 0:01:14]}  Ne4 {[%clk 0:01:02]} 25. Rb1 {[%clk 0:01:13]}  Rb5 {[%clk 0:00:58]} 26. f5 {[%clk 0:01:06]}  Rab8 {[%clk 0:00:49]} 27. fxe6+ {[%clk 0:01:06]}  Kxe6 {[%clk 0:00:50]} 28. Kd1 {[%clk 0:00:46]}  Nxc5 {[%clk 0:00:38]} 29. Bxc5 {[%clk 0:00:47]}  Rxc5 {[%clk 0:00:38]} 30. Kd2 {[%clk 0:00:46]}  Rbc8 {[%clk 0:00:37]} 31. Rb2 {[%clk 0:00:45]}  d4 {[%clk 0:00:34]} 32. b4 {[%clk 0:00:44]}  axb4 {[%clk 0:00:25]} 33. axb4 {[%clk 0:00:45]}  Rc3 {[%clk 0:00:25]} 34. b5 {[%clk 0:00:44]}  Rxf3 {[%clk 0:00:24]} 35. gxf3 {[%clk 0:00:45]}  Kd5 {[%clk 0:00:24]} 36. b6 {[%clk 0:00:43]}  Rb8 {[%clk 0:00:23]} 37. Kd3 {[%clk 0:00:39]}  Kc6 {[%clk 0:00:21]} 38. Kxd4 {[%clk 0:00:38]}  Rxb6 {[%clk 0:00:21]} 39. Rg2 {[%clk 0:00:39]}  g6 {[%clk 0:00:20]} 40. Ke5 {[%clk 0:00:34]}  Rb5+ {[%clk 0:00:20]} 41. Kf6 {[%clk 0:00:33]}  Rf5+ {[%clk 0:00:20]} 42. Kg7 {[%clk 0:00:34]}  Rh5 {[%clk 0:00:18]} 43. f4 {[%clk 0:00:28]}  d5 {[%clk 0:00:17]} 44. Rc2+ {[%clk 0:00:27]}  Kd6 {[%clk 0:00:17]} 45. Kf6 {[%clk 0:00:25]}  d4 {[%clk 0:00:15]} 46. Rd2 {[%clk 0:00:25]}  Kd5 {[%clk 0:00:15]} 47. Re2 {[%clk 0:00:23]}  d3 {[%clk 0:00:14]} 48. Re8 {[%clk 0:00:23]}  Kd4 {[%clk 0:00:15]} 49. Ke6 {[%clk 0:00:22]}  Rxh2 {[%clk 0:00:14]} 50. Rd8+ {[%clk 0:00:22]}  Kc3 {[%clk 0:00:14]} 51. Rc8+ {[%clk 0:00:21]}  Kd2 {[%clk 0:00:13]} 52. f5 {[%clk 0:00:18]}  gxf5 {[%clk 0:00:13]} 53. Kxf5 {[%clk 0:00:19]}  Kd1 {[%clk 0:00:12]} 54. Kf4 {[%clk 0:00:15]}  Re2 {[%clk 0:00:10]} 55. Kf3 {[%clk 0:00:15]}  Re7 {[%clk 0:00:10]} 56. Kf2 {[%clk 0:00:14]}  d2 {[%clk 0:00:10]} 57. Rc6 {[%clk 0:00:13]}  h5 {[%clk 0:00:09]} 58. Rc4 {[%clk 0:00:13]}  Re5 {[%clk 0:00:06]} 59. Kf1 {[%clk 0:00:12]}  Rf5+ {[%clk 0:00:06]} 60. Kg2 {[%clk 0:00:13]}  Ke2 {[%clk 0:00:06]} 61. Re4+ {[%clk 0:00:13]}  Kd3 {[%clk 0:00:06]} 62. Rh4 {[%clk 0:00:08]}  d1=Q {[%clk 0:00:06]} 63. Rh3+ {[%clk 0:00:08]}  Kd4 {[%clk 0:00:05]} 64. Rg3 {[%clk 0:00:08]}  Qe2+ {[%clk 0:00:05]} 65. Kh3 {[%clk 0:00:07]}  Qg4+ {[%clk 0:00:04]} 66. Kh2 {[%clk 0:00:06]}  Qxg3+ {[%clk 0:00:04]} 67. Kh1 {[%clk 0:00:06]}  Ke4 {[%clk 0:00:05]} 1/2-1/2


[Site "https://www.chess.com"]

[Event "Titled Tuesday Blitz June 28 Early 2022"]
[White "Soham Kamotra"]
[Black "Xu, Yi"]
[WhiteFideId "46647490"]
[BlackFideId "8605564"]
[WhiteElo "2082"]
[BlackElo "2471"]
[Result "1-0"]
[Round "05"]
[TimeControl "180+1"]
[Date "2022.06.28"]
[WhiteClock "0:01:13"]
[BlackClock "0:00:35"]

1. e4 {[%clk 0:03:00]}  c5 {[%clk 0:03:00]} 2. Nf3 {[%clk 0:03:01]}  d6 {[%clk 0:03:00]} 3. d4 {[%clk 0:03:01]}  cxd4 {[%clk 0:03:01]} 4. Nxd4 {[%clk 0:03:02]}  Nf6 {[%clk 0:03:02]} 5. f3 {[%clk 0:03:03]}  e6 {[%clk 0:02:53]} 6. c4 {[%clk 0:03:02]}  a6 {[%clk 0:02:53]} 7. Nc3 {[%clk 0:03:03]}  b6 {[%clk 0:02:53]} 8. Be3 {[%clk 0:03:03]}  Bb7 {[%clk 0:02:54]} 9. Be2 {[%clk 0:03:03]}  Nbd7 {[%clk 0:02:54]} 10. O-O {[%clk 0:03:04]}  Be7 {[%clk 0:02:55]} 11. Rc1 {[%clk 0:03:04]}  Qc7 {[%clk 0:02:55]} 12. Qd2 {[%clk 0:03:03]}  O-O {[%clk 0:02:55]} 13. Rfd1 {[%clk 0:03:03]}  Rac8 {[%clk 0:02:56]} 14. Kh1 {[%clk 0:03:03]}  Qb8 {[%clk 0:02:56]} 15. g4 {[%clk 0:02:55]}  Bd8 {[%clk 0:02:43]} 16. g5 {[%clk 0:02:53]}  Ne8 {[%clk 0:02:43]} 17. Rg1 {[%clk 0:02:41]}  Bc7 {[%clk 0:02:43]} 18. h4 {[%clk 0:02:31]}  Qa8 {[%clk 0:02:10]} 19. h5 {[%clk 0:02:22]}  e5 {[%clk 0:01:52]} 20. Nf5 {[%clk 0:02:18]}  Bd8 {[%clk 0:01:44]} 21. g6 {[%clk 0:02:10]}  fxg6 {[%clk 0:01:41]} 22. hxg6 {[%clk 0:02:11]}  Rxf5 {[%clk 0:01:31]} 23. gxh7+ {[%clk 0:02:03]}  Kh8 {[%clk 0:01:31]} 24. exf5 {[%clk 0:02:02]}  Bxf3+ {[%clk 0:01:31]} 25. Kh2 {[%clk 0:01:53]}  Ndf6 {[%clk 0:01:28]} 26. Nd5 {[%clk 0:01:39]}  Bxe2 {[%clk 0:00:50]} 27. Qxe2 {[%clk 0:01:38]}  Nxd5 {[%clk 0:00:49]} 28. cxd5 {[%clk 0:01:36]}  Rxc1 {[%clk 0:00:43]} 29. Rxc1 {[%clk 0:01:37]}  Nf6 {[%clk 0:00:43]} 30. Rc6 {[%clk 0:01:30]}  Be7 {[%clk 0:00:37]} 31. Qc4 {[%clk 0:01:25]}  Kxh7 {[%clk 0:00:36]} 32. Rc8 {[%clk 0:01:16]}  Qxd5 {[%clk 0:00:35]} 33. Qh4+ {[%clk 0:01:13]} 1-0


[Site "https://www.chess.com"]

[Event "Titled Tuesday Blitz June 28 Early 2022"]
[White "Sokolovsky, Yahli"]
[Black "Dushyant Sharma"]
[WhiteFideId "2820242"]
[BlackFideId "25065130"]
[WhiteElo "1770"]
[BlackElo "2105"]
[Result "1-0"]
[Round "05"]
[TimeControl "180+1"]
[Date "2022.06.28"]
[WhiteClock "0:00:07"]
[BlackClock "0:00:02"]

1. b3 {[%clk 0:03:00]}  d5 {[%clk 0:02:52]} 2. Bb2 {[%clk 0:03:01]}  e6 {[%clk 0:02:52]} 3. e3 {[%clk 0:03:01]}  f5 {[%clk 0:02:51]} 4. Nf3 {[%clk 0:02:54]}  Nf6 {[%clk 0:02:51]} 5. d4 {[%clk 0:02:52]}  Be7 {[%clk 0:02:52]} 6. Bd3 {[%clk 0:02:53]}  O-O {[%clk 0:02:52]} 7. O-O {[%clk 0:02:53]}  c5 {[%clk 0:02:53]} 8. c4 {[%clk 0:02:46]}  Nc6 {[%clk 0:02:54]} 9. dxc5 {[%clk 0:02:37]}  Bxc5 {[%clk 0:02:50]} 10. Nc3 {[%clk 0:02:38]}  d4 {[%clk 0:02:47]} 11. Na4 {[%clk 0:02:37]}  Be7 {[%clk 0:02:27]} 12. Nxd4 {[%clk 0:02:31]}  Bd7 {[%clk 0:02:22]} 13. Nc3 {[%clk 0:02:23]}  Nxd4 {[%clk 0:02:20]} 14. exd4 {[%clk 0:02:23]}  Bc6 {[%clk 0:02:20]} 15. Be2 {[%clk 0:02:21]}  Rc8 {[%clk 0:02:18]} 16. Bf3 {[%clk 0:02:18]}  Bxf3 {[%clk 0:02:07]} 17. Qxf3 {[%clk 0:02:19]}  Qxd4 {[%clk 0:02:06]} 18. Nd5 {[%clk 0:02:15]}  Qc5 {[%clk 0:02:03]} 19. Bd4 {[%clk 0:02:15]}  Qd6 {[%clk 0:01:58]} 20. Nxf6+ {[%clk 0:01:59]}  Bxf6 {[%clk 0:01:36]} 21. Bxf6 {[%clk 0:01:59]}  Rxf6 {[%clk 0:01:37]} 22. Qxb7 {[%clk 0:01:59]}  Rcf8 {[%clk 0:01:28]} 23. Qxa7 {[%clk 0:01:52]}  Rh6 {[%clk 0:01:27]} 24. f4 {[%clk 0:01:48]}  e5 {[%clk 0:01:16]} 25. Rad1 {[%clk 0:01:35]}  Qf6 {[%clk 0:01:17]} 26. Qe3 {[%clk 0:01:09]}  exf4 {[%clk 0:01:09]} 27. Qxf4 {[%clk 0:01:05]}  Qb6+ {[%clk 0:01:06]} 28. Qd4 {[%clk 0:01:00]}  Qc7 {[%clk 0:01:04]} 29. g3 {[%clk 0:00:46]}  Rg6 {[%clk 0:00:51]} 30. Qd5+ {[%clk 0:00:34]}  Kh8 {[%clk 0:00:50]} 31. Rxf5 {[%clk 0:00:31]}  Re8 {[%clk 0:00:21]} 32. Rdf1 {[%clk 0:00:29]}  Qe7 {[%clk 0:00:12]} 33. Qe5 {[%clk 0:00:15]}  Qa7+ {[%clk 0:00:11]} 34. Qc5 {[%clk 0:00:13]}  Qxc5+ {[%clk 0:00:06]} 35. Rxc5 {[%clk 0:00:14]}  h6 {[%clk 0:00:06]} 36. Rcf5 {[%clk 0:00:14]}  Re2 {[%clk 0:00:07]} 37. R5f2 {[%clk 0:00:15]}  Re3 {[%clk 0:00:07]} 38. Rc2 {[%clk 0:00:15]}  h5 {[%clk 0:00:06]} 39. Kf2 {[%clk 0:00:13]}  Re5 {[%clk 0:00:06]} 40. Re2 {[%clk 0:00:11]}  Ra5 {[%clk 0:00:05]} 41. h4 {[%clk 0:00:06]}  Rf5+ {[%clk 0:00:05]} 42. Kg2 {[%clk 0:00:07]}  Ra5 {[%clk 0:00:05]} 43. Rfe1 {[%clk 0:00:06]}  Kh7 {[%clk 0:00:05]} 44. Rd1 {[%clk 0:00:06]}  Rg4 {[%clk 0:00:05]} 45. Rd5 {[%clk 0:00:06]}  Ra8 {[%clk 0:00:03]} 46. Rxh5+ {[%clk 0:00:06]}  Kg8 {[%clk 0:00:04]} 47. Rg5 {[%clk 0:00:06]}  Rd4 {[%clk 0:00:04]} 48. Re7 {[%clk 0:00:06]}  Rxa2+ {[%clk 0:00:04]} 49. Kh3 {[%clk 0:00:07]}  Rd1 {[%clk 0:00:04]} 50. Rgxg7+ {[%clk 0:00:07]}  Kh8 {[%clk 0:00:04]} 51. Rh7+ {[%clk 0:00:06]}  Kg8 {[%clk 0:00:04]} 52. Reg7+ {[%clk 0:00:06]}  Kf8 {[%clk 0:00:05]} 53. Rb7 {[%clk 0:00:07]}  Kg8 {[%clk 0:00:05]} 54. Rhd7 {[%clk 0:00:07]}  Rh2+ {[%clk 0:00:02]} 55. Kxh2 {[%clk 0:00:07]} 1-0


[Site "https://www.chess.com"]

[Event "Titled Tuesday Blitz June 28 Early 2022"]
[White "Terry, Renato"]
[Black "Fedoseev, Vladimir"]
[WhiteFideId "3803457"]
[BlackFideId "24130737"]
[WhiteElo "2577"]
[BlackElo "2726"]
[Result "0-1"]
[Round "05"]
[TimeControl "180+1"]
[Date "2022.06.28"]
[WhiteClock "0:00:04"]
[BlackClock "0:00:08"]

1. d4 {[%clk 0:03:00]}  d6 {[%clk 0:02:56]} 2. Nf3 {[%clk 0:03:00]}  g6 {[%clk 0:02:56]} 3. e4 {[%clk 0:03:00]}  Bg7 {[%clk 0:02:56]} 4. c3 {[%clk 0:03:00]}  a6 {[%clk 0:02:53]} 5. Bc4 {[%clk 0:02:58]}  Nf6 {[%clk 0:02:52]} 6. Nbd2 {[%clk 0:02:57]}  O-O {[%clk 0:02:50]} 7. a4 {[%clk 0:02:56]}  Nc6 {[%clk 0:02:39]} 8. O-O {[%clk 0:02:53]}  e5 {[%clk 0:02:34]} 9. dxe5 {[%clk 0:02:53]}  dxe5 {[%clk 0:02:33]} 10. Re1 {[%clk 0:02:49]}  Qe7 {[%clk 0:02:19]} 11. b3 {[%clk 0:02:45]}  Rd8 {[%clk 0:02:16]} 12. Qc2 {[%clk 0:02:43]}  Ne8 {[%clk 0:02:12]} 13. Ba3 {[%clk 0:02:42]}  Nd6 {[%clk 0:02:10]} 14. Bd5 {[%clk 0:02:41]}  Qf6 {[%clk 0:01:58]} 15. Nf1 {[%clk 0:02:34]}  Ne7 {[%clk 0:01:56]} 16. Ne3 {[%clk 0:02:32]}  Bh6 {[%clk 0:01:51]} 17. Rad1 {[%clk 0:02:29]}  Rb8 {[%clk 0:01:12]} 18. Nc4 {[%clk 0:02:12]}  Nxd5 {[%clk 0:01:09]} 19. Nxd6 {[%clk 0:01:56]}  cxd6 {[%clk 0:00:40]} 20. Rxd5 {[%clk 0:01:55]}  Be6 {[%clk 0:00:33]} 21. Rxd6 {[%clk 0:01:40]}  Rxd6 {[%clk 0:00:32]} 22. Bxd6 {[%clk 0:01:41]}  Bxb3 {[%clk 0:00:32]} 23. Qxb3 {[%clk 0:01:39]}  Qxd6 {[%clk 0:00:32]} 24. Rb1 {[%clk 0:01:32]}  b5 {[%clk 0:00:26]} 25. h3 {[%clk 0:01:28]}  Bg7 {[%clk 0:00:22]} 26. Rd1 {[%clk 0:01:09]}  Qc7 {[%clk 0:00:17]} 27. axb5 {[%clk 0:01:07]}  Rxb5 {[%clk 0:00:16]} 28. Qa2 {[%clk 0:01:07]}  Rb6 {[%clk 0:00:15]} 29. Qd5 {[%clk 0:01:01]}  Bf6 {[%clk 0:00:15]} 30. c4 {[%clk 0:00:53]}  Rc6 {[%clk 0:00:15]} 31. Ra1 {[%clk 0:00:52]}  Kg7 {[%clk 0:00:12]} 32. g4 {[%clk 0:00:51]}  Rc5 {[%clk 0:00:11]} 33. Qd3 {[%clk 0:00:49]}  Qc6 {[%clk 0:00:11]} 34. Nd2 {[%clk 0:00:44]}  Bg5 {[%clk 0:00:10]} 35. Nf3 {[%clk 0:00:44]}  Bf4 {[%clk 0:00:09]} 36. Re1 {[%clk 0:00:02]}  Rxc4 {[%clk 0:00:09]} 37. Qb1 {[%clk 0:00:02]}  a5 {[%clk 0:00:09]} 38. Kg2 {[%clk 0:00:02]}  a4 {[%clk 0:00:09]} 39. Qb2 {[%clk 0:00:01]}  Rxe4 {[%clk 0:00:09]} 40. Ra1 {[%clk 0:00:01]}  Rc4 {[%clk 0:00:08]} 41. Qe2 {[%clk 0:00:01]}  Rc3 {[%clk 0:00:07]} 42. Qd1 {[%clk 0:00:01]}  a3 {[%clk 0:00:08]} 43. h4 {[%clk 0:00:02]}  h5 {[%clk 0:00:07]} 44. gxh5 {[%clk 0:00:02]}  gxh5 {[%clk 0:00:08]} 45. Ra2 {[%clk 0:00:03]}  Kf6 {[%clk 0:00:07]} 46. Ra1 {[%clk 0:00:03]}  Kf5 {[%clk 0:00:07]} 47. Qe2 {[%clk 0:00:03]}  Kg4 {[%clk 0:00:07]} 48. Rg1 {[%clk 0:00:02]}  Qxf3+ {[%clk 0:00:07]} 49. Kf1+ {[%clk 0:00:02]}  Kf5 {[%clk 0:00:06]} 50. Qxf3 {[%clk 0:00:03]}  Rxf3 {[%clk 0:00:06]} 51. Ke2 {[%clk 0:00:04]}  Rb3 {[%clk 0:00:06]} 52. Rb1 {[%clk 0:00:04]}  Rb2+ {[%clk 0:00:07]} 53. Rxb2 {[%clk 0:00:04]}  axb2 {[%clk 0:00:08]} 0-1


[Site "https://www.chess.com"]

[Event "Titled Tuesday Blitz June 28 Early 2022"]
[White "Timofeev, Artyom"]
[Black "Marjanovic, Annamaria"]
[WhiteFideId "4140419"]
[BlackFideId "750930"]
[WhiteElo "2578"]
[BlackElo "2156"]
[Result "1-0"]
[Round "05"]
[TimeControl "180+1"]
[Date "2022.06.28"]
[WhiteClock "0:00:27"]
[BlackClock "0:00:11"]

1. e4 {[%clk 0:03:00]}  c6 {[%clk 0:02:58]} 2. Nf3 {[%clk 0:02:59]}  d5 {[%clk 0:02:58]} 3. Nc3 {[%clk 0:02:59]}  g6 {[%clk 0:02:48]} 4. d4 {[%clk 0:02:56]}  Bg7 {[%clk 0:02:46]} 5. Be2 {[%clk 0:02:55]}  dxe4 {[%clk 0:02:45]} 6. Nxe4 {[%clk 0:02:55]}  Nf6 {[%clk 0:02:44]} 7. Nxf6+ {[%clk 0:02:54]}  Bxf6 {[%clk 0:02:45]} 8. Bh6 {[%clk 0:02:53]}  Bg4 {[%clk 0:02:43]} 9. c3 {[%clk 0:02:52]}  Nd7 {[%clk 0:02:39]} 10. O-O {[%clk 0:02:49]}  Qc7 {[%clk 0:02:36]} 11. h3 {[%clk 0:02:43]}  Bxf3 {[%clk 0:02:29]} 12. Bxf3 {[%clk 0:02:44]}  O-O-O {[%clk 0:02:29]} 13. Qc1 {[%clk 0:02:41]}  e5 {[%clk 0:02:25]} 14. d5 {[%clk 0:02:34]}  cxd5 {[%clk 0:02:20]} 15. Bxd5 {[%clk 0:02:34]}  Nc5 {[%clk 0:02:19]} 16. c4 {[%clk 0:02:31]}  e4 {[%clk 0:02:05]} 17. Qe3 {[%clk 0:02:24]}  Be5 {[%clk 0:01:40]} 18. b4 {[%clk 0:02:01]}  Nd3 {[%clk 0:01:37]} 19. Qxa7 {[%clk 0:01:58]}  Bxa1 {[%clk 0:01:24]} 20. Rxa1 {[%clk 0:01:57]}  Qb8 {[%clk 0:01:14]} 21. Qa3 {[%clk 0:01:25]}  Rhe8 {[%clk 0:00:58]} 22. Be3 {[%clk 0:01:20]}  f5 {[%clk 0:00:45]} 23. Bb6 {[%clk 0:01:09]}  Rd6 {[%clk 0:00:37]} 24. Qa5 {[%clk 0:01:09]}  Kd7 {[%clk 0:00:27]} 25. Rd1 {[%clk 0:00:54]}  Qa8 {[%clk 0:00:18]} 26. Qb5+ {[%clk 0:00:54]}  Ke7 {[%clk 0:00:18]} 27. Bc5 {[%clk 0:00:41]}  Nxc5 {[%clk 0:00:16]} 28. bxc5 {[%clk 0:00:41]}  Rd7 {[%clk 0:00:14]} 29. a4 {[%clk 0:00:40]}  Qa6 {[%clk 0:00:13]} 30. Re1 {[%clk 0:00:30]}  Qxb5 {[%clk 0:00:12]} 31. axb5 {[%clk 0:00:30]}  Kf6 {[%clk 0:00:12]} 32. c6 {[%clk 0:00:29]}  bxc6 {[%clk 0:00:09]} 33. Bxc6 {[%clk 0:00:29]}  Rde7 {[%clk 0:00:10]} 34. Bxe8 {[%clk 0:00:29]}  Rxe8 {[%clk 0:00:11]} 35. c5 {[%clk 0:00:29]}  Rc8 {[%clk 0:00:11]} 36. c6 {[%clk 0:00:29]}  Ke6 {[%clk 0:00:11]} 37. Rd1 {[%clk 0:00:27]}  Rb8 {[%clk 0:00:11]} 38. c7 {[%clk 0:00:27]}  Rc8 {[%clk 0:00:11]} 39. b6 {[%clk 0:00:28]}  Ke7 {[%clk 0:00:11]} 40. b7 {[%clk 0:00:27]} 1-0


[Site "https://www.chess.com"]